fUSD/lending_fUSD_20241223
["ID","MTS","AMOUNT","RATE_DAILY","PERIOD"]
[346451945,1734981041833,-500.0,0.00017248,2]
[346451946,1734981041843,-500.0,0.00017248,2]
[346451947,1734981041852,-500.0,0.00017248,2]
[346451948,1734981041861,-500.0,0.00017248,2]
[346451949,1734981041870,-2532.73,0.00017248,2]
[346451950,1734981041880,-500.0,0.00017248,2]
[346451951,1734981041890,-500.0,0.00017248,2]
[346451952,1734981041899,-1707.98,0.00017248,2]
[346451953,1734981041909,-894.36,0.00017248,2]
[346451954,1734981041919,-935.39,0.00017248,2]
[346451956,1734981041929,-563.1,0.00017248,2]
[346451957,1734981041938,-548.7,0.00017248,2]
[346451958,1734981041947,-1198.26,0.00017248,2]
[346451959,1734981041956,-500.0,0.00017248,2]
[346451960,1734981041965,-987.64,0.00017248,2]
[346451961,1734981041974,-590.17462165,0.00017248,2]
[346451962,1734981041983,-500.0,0.00017248,2]
[346451963,1734981041992,-4084.33,0.00017248,2]
[346451964,1734981042001,-500.0,0.00017248,2]
[346451965,1734981042011,-500.0,0.00017248,2]
[346451966,1734981042020,-500.0,0.00017248,2]
[346451967,1734981042030,-549.2,0.00017248,2]
[346451968,1734981042039,-2279.38,0.00017248,2]
[346451969,1734981042049,-500.0,0.00017248,2]
[346451970,1734981042058,-508.81027517,0.00017248,2]
[346451971,1734981042068,-500.0,0.00017248,2]
[346451972,1734981042077,-7526.13,0.00017248,2]
[346451973,1734981042086,-1716.14,0.00017248,2]
[346451974,1734981042095,-500.0,0.00017248,2]
[346451975,1734981042104,-500.0,0.00017248,2]
[346451976,1734981042113,-1170.63,0.00017248,2]
[346451978,1734981042123,-500.0,0.00017248,2]
[346451980,1734981042132,-500.0,0.00017248,2]
[346451982,1734981042141,-500.0,0.00017248,2]
[346451983,1734981042150,-848.41,0.00017248,2]
[346451984,1734981042160,-500.0,0.00017248,2]
[346451985,1734981042169,-724.44,0.00017248,2]
[346451986,1734981042179,-1818.98,0.00017248,2]
[346451987,1734981042188,-500.0,0.00017248,2]
[346451988,1734981042197,-536.89,0.00017248,2]
[346451989,1734981042206,-500.0,0.00017248,2]
[346451990,1734981042215,-855.22269352,0.00017248,2]
[346451991,1734981042224,-10241.12,0.00017248,2]
[346451992,1734981042233,-500.0,0.00017248,2]
[346451993,1734981042243,-2416.54,0.00017248,2]
[346451994,1734981042253,-1015.27,0.00017248,2]
[346451995,1734981042263,-477.25286906,0.00017248,2]
[346451996,1734981042272,-503.07538177,0.00017248,2]
[346451997,1734981042281,-500.0,0.00017248,2]
[346451998,1734981042290,-890.63,0.00017248,2]
[346451999,1734981042300,-1169.28,0.00017248,2]
[346452000,1734981042310,-500.0,0.00017248,2]
[346452001,1734981042320,-1978.99,0.00017248,2]
[346452002,1734981042329,-500.0,0.00017248,2]
[346452003,1734981042339,-500.0,0.00017248,2]
[346452004,1734981042348,-652.45,0.00017248,2]
[346452005,1734981042357,-910.03,0.00017248,2]
[346452006,1734981042366,-500.0,0.00017248,2]
[346452007,1734981042375,-1007.08,0.00017248,2]
[346452008,1734981042385,-624.21,0.00017248,2]
[346452009,1734981042394,-500.0,0.00017248,2]
[346452010,1734981042403,-1302.19,0.00017248,2]
[346452011,1734981042412,-500.0,0.00017248,2]
[346452012,1734981042422,-500.0,0.00017248,2]
[346452013,1734981042433,-758.96,0.00017248,2]
[346452014,1734981042442,-500.0,0.00017248,2]
[346452015,1734981042452,-500.0,0.00017248,2]
[346452016,1734981042462,-2359.52,0.00017248,2]
[346452017,1734981042471,-1554.11,0.00017248,2]
[346452018,1734981042481,-813.6,0.00017248,2]
[346452019,1734981042493,-1794.27,0.00017248,2]
[346452020,1734981042507,-1983.87,0.00017248,2]
[346452021,1734981042517,-500.0,0.00017248,2]
[346452022,1734981042526,-500.0,0.00017248,2]
[346452023,1734981042536,-502.28238846,0.00017248,2]
[346452024,1734981042546,-500.0,0.00017248,2]
[346452025,1734981042555,-394.04542273,0.00017248,2]
[346452026,1734981042564,-1454.51,0.00017248,2]
[346452027,1734981042575,-500.0,0.00017248,2]
[346452028,1734981042584,-2349.37,0.00017248,2]
[346452029,1734981042594,-500.0,0.00017248,2]
[346452030,1734981042604,-502.09902832,0.00017248,2]
[346452031,1734981042613,-500.0,0.00017248,2]
[346452032,1734981042622,-500.0,0.00017248,2]
[346452033,1734981042631,-500.0,0.00017248,2]
[346452034,1734981042640,-701.88,0.00017248,2]
[346452035,1734981042650,-2108.55,0.00017248,2]
[346452036,1734981042659,-2234.72,0.00017248,2]
[346452037,1734981042669,-520.3,0.00017248,2]
[346452038,1734981043034,-500.0,0.00017248,2]
[346452039,1734981043044,-507.58774291,0.00017248,2]
[346452040,1734981043053,-500.0,0.00017248,2]
[346452041,1734981043062,-1289.52,0.00017248,2]
[346452042,1734981043071,-5376.87,0.00017248,2]
[346452043,1734981043080,-4463.13,0.00017248,2]
[346452044,1734981043089,-2584.18,0.00017248,2]
[346452045,1734981043098,-500.0,0.00017248,2]
[346452046,1734981043108,-500.0,0.00017248,2]
[346452047,1734981043117,-500.0,0.00017248,2]
[346452048,1734981043126,-571.12,0.00017248,2]
[346452049,1734981043136,-500.0,0.00017248,2]
[346452050,1734981043145,-500.91133664,0.00017248,2]
[346452051,1734981043154,-500.0,0.00017248,2]
[346452052,1734981043164,-201.17446881,0.00017248,2]
[346452053,1734981043173,-500.0,0.00017248,2]
[346452054,1734981043184,-717.37,0.00017248,2]
[346452055,1734981043194,-500.0,0.00017248,2]
[346452056,1734981043203,-338.11446037,0.00017248,2]
[346452057,1734981043212,-500.0,0.00017248,2]
[346452058,1734981043222,-500.0,0.00017248,2]
[346452059,1734981043231,-4682.94,0.00017248,2]
[346452060,1734981043240,-977.03,0.00017248,2]
[346452061,1734981043250,-584.02,0.00017248,2]
[346452062,1734981043259,-500.0,0.00017248,2]
[346452063,1734981043269,-876.51,0.00017248,2]
[346452065,1734981043278,-502.35116814,0.00017248,2]
[346452067,1734981043288,-2748.02,0.00017248,2]
[346452069,1734981043297,-500.0,0.00017248,2]
[346452070,1734981043306,-2577.53,0.00017248,2]
[346452071,1734981043315,-500.0,0.00017248,2]
[346452072,1734981043324,-500.0,0.00017248,2]
[346452073,1734981043333,-500.0,0.00017248,2]
[346452074,1734981043343,-2675.37,0.00017248,2]
[346452075,1734981043353,-500.0,0.00017248,2]
[346452076,1734981043362,-439.46343408,0.00017248,2]
[346452077,1734981043371,-500.0,0.00017249,2]
[346452078,1734981043381,-500.0,0.00017249,2]
[346452079,1734981043390,-500.0,0.00017249,2]
[346452080,1734981043399,-250.75930885,0.00017249,2]
[346452081,1734981043408,-500.0,0.00017249,2]
[346452082,1734981043417,-1506.45,0.00017249,2]
[346452083,1734981043427,-500.0,0.00017249,2]
[346452084,1734981043437,-850.1,0.00017249,2]
[346452085,1734981043446,-597.86,0.00017249,2]
[346452086,1734981043455,-1106.46,0.00017249,2]
[346452087,1734981043465,-787.5,0.00017249,2]
[346452088,1734981043474,-500.0,0.00017249,2]
[346452089,1734981043483,-691.61,0.00017249,2]
[346452090,1734981043494,-500.0,0.00017249,2]
[346452091,1734981043503,-500.0,0.00017249,2]
[346452092,1734981043512,-1203.17,0.00017249,2]
[346452093,1734981043521,-1349.63,0.00017249,2]
[346452094,1734981043530,-1155.86,0.00017249,2]
[346452095,1734981043541,-500.0,0.00017249,2]
[346452096,1734981043550,-1375.66,0.00017249,2]
[346452097,1734981043559,-731.38,0.00017249,2]
[346452098,1734981043569,-500.0,0.00017249,2]
[346452099,1734981043579,-500.0,0.00017249,2]
[346452100,1734981043588,-1983.9,0.00017249,2]
[346452101,1734981043597,-1217.07,0.00017249,2]
[346452102,1734981043606,-1967.5,0.00017249,2]
[346452103,1734981043615,-1476.28,0.00017249,2]
[346452104,1734981043624,-1201.61,0.00017249,2]
[346452105,1734981043633,-2146.47,0.00017249,2]
[346452106,1734981043642,-500.0,0.00017249,2]
[346452107,1734981043651,-940.13,0.00017249,2]
[346452108,1734981043660,-1169.44,0.00017249,2]
[346452109,1734981043669,-500.0,0.00017249,2]
[346452110,1734981043678,-500.0,0.00017249,2]
[346452111,1734981043689,-1817.35,0.00017249,2]
[346452112,1734981043699,-1426.33,0.00017249,2]
[346452113,1734981043709,-2046.2,0.00017249,2]
[346452114,1734981043718,-1606.08,0.00017249,2]
[346452115,1734981043728,-2815.28,0.00017249,2]
[346452116,1734981043737,-969.88,0.00017249,2]
[346452117,1734981043747,-1372.59,0.00017249,2]
[346452118,1734981043756,-500.0,0.00017249,2]
[346452119,1734981043765,-1061.95,0.00017249,2]
[346452120,1734981043775,-500.0,0.00017249,2]
[346452121,1734981043784,-610.46,0.00017249,2]
[346452122,1734981043794,-500.0,0.00017249,2]
[346452123,1734981043803,-1380.94,0.00017249,2]
[346452124,1734981043812,-1014.01,0.00017249,2]
[346452125,1734981043822,-1117.83,0.00017249,2]
[346452126,1734981043831,-898.72,0.00017249,2]
[346452127,1734981043840,-1912.79,0.00017249,2]
[346452128,1734981043849,-500.0,0.00017249,2]
[346452129,1734981043858,-500.0,0.00017249,2]
[346452130,1734981043868,-500.0,0.00017249,2]
[346452131,1734981043877,-1156.17,0.00017249,2]
[346452132,1734981043886,-1225.13,0.00017249,2]
[346452133,1734981043896,-1399.76,0.00017249,2]
[346452134,1734981043906,-1377.05,0.00017249,2]
[346452135,1734981043916,-860.2,0.00017249,2]
[346452136,1734981043925,-891.7,0.00017249,2]
[346452137,1734981043936,-500.0,0.00017249,2]
[346452138,1734981043945,-500.0,0.00017249,2]
[346452139,1734981043954,-1075.64,0.00017249,2]
[346452140,1734981043964,-500.0,0.00017249,2]
[346452141,1734981043974,-915.07,0.00017249,2]
[346452142,1734981043983,-1194.73,0.00017249,2]
[346452143,1734981043992,-558.16,0.00017249,2]
[346452144,1734981044001,-1063.4569058,0.00017249,2]
[346452145,1734981044034,-2121.95,0.00017248,2]
[346452146,1734981044043,-358.3230942,0.00017249,2]
[346452147,1734981044052,-1823.72,0.00017249,2]
[346452148,1734981044061,-1914.38,0.00017249,2]
[346452149,1734981044070,-874.71,0.00017249,2]
[346452150,1734981044080,-1301.37,0.00017249,2]
[346452151,1734981044089,-500.0,0.00017249,2]
[346452153,1734981044099,-500.0,0.00017249,2]
[346452155,1734981044108,-957.81,0.00017249,2]
[346452157,1734981044118,-832.58,0.00017249,2]
[346452159,1734981044127,-1397.75,0.00017249,2]
[346452164,1734981044137,-1070.21,0.00017249,2]
[346452167,1734981044146,-1047.0,0.00017249,2]
[346452171,1734981044156,-1209.94,0.00017249,2]
[346452174,1734981044165,-500.0,0.00017249,2]
[346452176,1734981044174,-961.46,0.00017249,2]
[346452180,1734981044186,-1115.75,0.00017249,2]
[346452182,1734981044196,-958.31,0.00017249,2]
[346452184,1734981044206,-1054.44,0.00017249,2]
[346452187,1734981044216,-1213.41,0.00017249,2]
[346452191,1734981044228,-1857.37,0.00017249,2]
[346452194,1734981044239,-758.65,0.00017249,2]
[346452196,1734981044250,-1457.29,0.00017249,2]
[346452198,1734981044260,-500.0,0.00017249,2]
[346452200,1734981044270,-632.0,0.00017249,2]
[346452202,1734981044282,-500.0,0.00017249,2]
[346452204,1734981044292,-2100.76,0.00017249,2]
[346452206,1734981044302,-796.71,0.00017249,2]
[346452207,1734981044312,-1201.18,0.00017249,2]
[346452209,1734981044321,-770.55,0.00017249,2]
[346452211,1734981044332,-1834.68,0.00017249,2]
[346452213,1734981044341,-768.93,0.00017249,2]
[346452215,1734981044352,-2236.47,0.00017249,2]
[346452217,1734981044361,-500.0,0.00017249,2]
[346452219,1734981044371,-841.86,0.00017249,2]
[346452221,1734981044380,-3882.70525316,0.00017249,2]
[346452223,1734981044392,-993.20031205,0.00017249,2]
[346452229,1734981044457,-500.0,0.00017248,2]
[346452230,1734981044466,-1839.15579572,0.00017249,2]
[346452231,1734981044478,-321.00448597,0.00017249,2]
[346452232,1734981044490,-556.43340503,0.00017249,2]
[346452233,1734981044504,-99.75074807,0.00017249,2]
[346452234,1734981044513,-243.99977421,0.00017249,2]
[346452235,1734981044597,-1243.42389624,0.00017249,2]
[346452236,1734981044609,-552.47632955,0.00017249,2]
[346452237,1734981044618,-500.0,0.00017249,2]
[346452238,1734981044627,-500.0,0.00017249,2]
[346452239,1734981044637,-313.57367045,0.00017249,2]
[346452243,1734981044854,-514.86,0.00014729,2]
[346452244,1734981044864,-514.86,0.00016993,2]
[346452245,1734981044873,-334.11747749,0.00017248,2]
[346452246,1734981044884,-165.88252251,0.00017248,2]
[346452247,1734981044894,-1021.96801109,0.00017249,2]
[346452248,1734981044905,-1233.62831846,0.00017249,2]
[346452249,1734981044914,-1178.5,0.00017249,2]
[346452250,1734981044924,-2220.83,0.00017249,2]
[346452251,1734981044934,-1158.05,0.00017249,2]
[346452252,1734981044943,-500.0,0.00017249,2]
[346452253,1734981044952,-4410.42,0.00017249,2]
[346452254,1734981044962,-1317.3,0.00017249,2]
[346452255,1734981044971,-500.0,0.00017249,2]
[346452256,1734981044980,-1235.66,0.00017249,2]
[346452257,1734981044989,-6504.13,0.00017249,2]
[346452258,1734981044999,-500.0,0.00017249,2]
[346452259,1734981045008,-885.78,0.00017249,2]
[346452260,1734981045018,-1330.23,0.00017249,2]
[346452261,1734981045028,-500.0,0.00017249,2]
[346452262,1734981045037,-950.34,0.00017249,2]
[346452263,1734981045046,-3305.34,0.00017249,2]
[346452264,1734981045056,-500.0,0.00017249,2]
[346452265,1734981045065,-1165.37,0.00017249,2]
[346452266,1734981045074,-777.63,0.00017249,2]
[346452267,1734981045084,-523.34,0.00017249,2]
[346452268,1734981045093,-2348.84,0.00017249,2]
[346452269,1734981045103,-5270.03,0.00017249,2]
[346452270,1734981045113,-500.0,0.00017249,2]
[346452271,1734981045122,-829.61,0.00017249,2]
[346452272,1734981045132,-942.7,0.00017249,2]
[346452273,1734981045142,-5928.21,0.00017249,2]
[346452274,1734981045151,-1373.1,0.00017249,2]
[346452275,1734981045161,-3262.06168154,0.00017249,2]
[346452276,1734981045173,-2322.44831846,0.00017249,2]
[346452277,1734981045184,-1903.2,0.00017249,2]
[346452278,1734981045193,-854.94426076,0.00017249,2]
[346452279,1734981045205,-244.06573924,0.00017249,2]
[346452280,1734981045214,-1513.0,0.00017249,2]
[346452281,1734981045224,-518.89947166,0.00017249,2]
[346452282,1734981045234,-84.7688791,0.00017249,2]
[346452283,1734981045245,-517.7691157,0.00017249,2]
[346452284,1734981045900,-500.0,0.00017247,2]
[346452285,1734981045910,-1270.34,0.00017248,2]
[346452286,1734981045919,-500.0,0.00017248,2]
[346452287,1734981045928,-953.4020052,0.00017249,2]
[346452288,1734981045939,-1224.8134468,0.00017249,2]
[346452289,1734981045958,-310.1865532,0.00017249,2]
[346452290,1734981045967,-50.0159568,0.00017249,2]
[346452291,1734981045985,-449.9840432,0.00017249,2]
[346452292,1734981045994,-4404.8659568,0.00017249,2]
[346452293,1734981046005,-1709.4340432,0.00017249,2]
[346452294,1734981046015,-1640.75,0.00017249,2]
[346452295,1734981046024,-2304.66,0.00017249,2]
[346452296,1734981046033,-1020.4,0.00017249,2]
[346452297,1734981046042,-782.81,0.00017249,2]
[346452298,1734981046054,-740.9,0.00017249,2]
[346452299,1734981046067,-1105.2,0.00017249,2]
[346452300,1734981046081,-1420.31,0.00017249,2]
[346452301,1734981046094,-995.43,0.00017249,2]
[346452302,1734981046104,-500.0,0.00017249,2]
[346452303,1734981046115,-1179.2,0.00017249,2]
[346452304,1734981046128,-2251.18,0.00017249,2]
[346452305,1734981046140,-1417.48,0.00017249,2]
[346452306,1734981046153,-1312.58,0.00017249,2]
[346452307,1734981046165,-1397.33,0.00017249,2]
[346452308,1734981046177,-2119.92,0.00017249,2]
[346452310,1734981046192,-932.1,0.00017249,2]
[346452311,1734981046204,-1326.54,0.00017249,2]
[346452313,1734981046216,-671.19,0.00017249,2]
[346452314,1734981046227,-2393.22,0.00017249,2]
[346452315,1734981046237,-685.72,0.00017249,2]
[346452316,1734981046250,-2809.13,0.00017249,2]
[346452317,1734981046263,-741.46,0.00017249,2]
[346452318,1734981046276,-1371.86,0.00017249,2]
[346452319,1734981046288,-715.17,0.00017249,2]
[346452320,1734981046301,-1685.52,0.00017249,2]
[346452321,1734981046314,-791.23,0.00017249,2]
[346452322,1734981046326,-2081.88,0.00017249,2]
[346452323,1734981046339,-2788.9,0.00017249,2]
[346452324,1734981046351,-2014.16,0.00017249,2]
[346452325,1734981046365,-743.39,0.00017249,2]
[346452326,1734981046376,-1921.49,0.00017249,2]
[346452327,1734981046388,-500.0,0.0001725,2]
[346452328,1734981046401,-794.73,0.0001725,2]
[346452330,1734981046412,-1011.61,0.0001725,2]
[346452332,1734981046424,-500.0,0.0001725,2]
[346452334,1734981046436,-924.54,0.0001725,2]
[346452337,1734981046449,-500.0,0.00017251,2]
[346452338,1734981046461,-500.0,0.00017251,2]
[346452339,1734981046472,-500.0,0.00017251,2]
[346452340,1734981046483,-500.0,0.00017251,2]
[346452341,1734981046496,-500.0,0.00017251,2]
[346452342,1734981046508,-500.0,0.00017251,2]
[346452343,1734981046519,-1035.69,0.00017251,2]
[346452344,1734981046530,-500.0,0.00017251,2]
[346452345,1734981046546,-500.0,0.00017251,2]
[346452346,1734981046558,-1123.47,0.00017251,2]
[346452347,1734981046568,-1209.96,0.00017251,2]
[346452348,1734981046579,-481.35813675,0.00017251,2]
[346452349,1734981046590,-500.0,0.00017251,2]
[346452350,1734981046600,-511.66,0.00017251,2]
[346452351,1734981046612,-520.77,0.00017251,2]
[346452352,1734981046624,-500.0,0.00017251,2]
[346452353,1734981046634,-902.38,0.00017251,2]
[346452354,1734981046644,-500.0,0.00017251,2]
[346452355,1734981046654,-1429.86980663,0.00017251,2]
[346452356,1734981046729,-500.0,0.00017247,2]
[346452357,1734981046739,-46.59019337,0.00017251,2]
[346452358,1734981046751,-728.00495703,0.00017251,2]
[346452359,1734981046764,-253.94504297,0.00017251,2]
[346452360,1734981046775,-500.0,0.00017251,2]
[346452361,1734981046786,-500.0,0.00017251,2]
[346452362,1734981046796,-500.0,0.00017251,2]
[346452363,1734981046807,-193.90295703,0.00017251,2]
[346452364,1734981046822,-713.03704297,0.00017251,2]
[346452365,1734981046832,-551.18,0.00017251,2]
[346452366,1734981046844,-500.0,0.00017251,2]
[346452367,1734981046856,-870.88,0.00017251,2]
[346452368,1734981046867,-863.14,0.00017251,2]
[346452369,1734981046878,-500.0,0.00017251,2]
[346452370,1734981046889,-967.22,0.00017251,2]
[346452371,1734981046901,-500.0,0.00017251,2]
[346452372,1734981046912,-885.56,0.00017251,2]
[346452373,1734981046923,-745.44,0.00017251,2]
[346452374,1734981046934,-1207.7,0.00017251,2]
[346452375,1734981046945,-500.0,0.00017251,2]
[346452376,1734981046957,-50.08476334,0.00017251,2]
[346452377,1734981080634,-500.0,0.00017247,2]
[346452378,1734981080643,-155.940263,0.00017248,2]
[346452379,1734981080652,-156.491461,0.00017248,2]
[346452380,1734981080661,-154.072409,0.00017248,2]
[346452381,1734981080671,-500.0,0.00017249,2]
[346452382,1734981080680,-500.0,0.00017249,2]
[346452383,1734981080689,-449.91523666,0.00017251,2]
[346452384,1734981080698,-500.0,0.00017251,2]
[346452385,1734981080706,-500.0,0.00017251,2]
[346452386,1734981080716,-500.0,0.00017251,2]
[346452387,1734981080725,-616.89,0.00017251,2]
[346452388,1734981080734,-500.0,0.00017251,2]
[346452389,1734981080743,-500.0,0.00017251,2]
[346452390,1734981080752,-910.95,0.00017251,2]
[346452391,1734981080761,-500.0,0.00017251,2]
[346452392,1734981080770,-637.62,0.00017251,2]
[346452393,1734981080779,-500.0,0.00017251,2]
[346452394,1734981080788,-500.0,0.00017251,2]
[346452395,1734981080797,-992.73,0.00017251,2]
[346452396,1734981080805,-500.0,0.00017251,2]
[346452397,1734981080814,-4766.712,0.00017275,2]
[346452398,1734981080823,-150.0,0.00017275,2]
[346452399,1734981080832,-1170.0,0.00017275,2]
[346452400,1734981080841,-3887.0,0.00017275,2]
[346452401,1734981080850,-1101.0,0.00017275,2]
[346452402,1734981080859,-912.2085777,0.00017278,2]
[346452403,1734981080868,-3077.4992226,0.00017278,2]
[346452404,1734981080877,-912.2085777,0.00017407,2]
[346452405,1734981080886,-3077.4992226,0.00017408,2]
[346452406,1734981080895,-168.9,0.00017437,2]
[346452407,1734981080904,-150.0,0.0001749,2]
[346452408,1734981080913,-551.272,0.000175,2]
[346452409,1734981080922,-382.74245501,0.00017512,2]
[346452410,1734981080931,-2184.8,0.00017521,2]
[346452411,1734981080940,-1624.06,0.00017521,2]
[346452412,1734981080949,-644.14,0.00017521,2]
[346452413,1734981080957,-1305.92,0.00017521,2]
[346452414,1734981080967,-500.0,0.00017521,2]
[346452415,1734981080976,-2696.57,0.00017521,2]
[346452416,1734981080984,-978.78,0.00017521,2]
[346452417,1734981080993,-500.0,0.00017521,2]
[346452418,1734981081002,-4313.96,0.00017521,2]
[346452419,1734981081015,-12648.14,0.00017521,2]
[346452420,1734981081023,-2004.44,0.00017521,2]
[346452421,1734981081032,-3104.14,0.00017521,2]
[346452422,1734981081042,-2374.66,0.00017521,2]
[346452423,1734981081051,-4905.56,0.00017521,2]
[346452424,1734981081060,-4213.61,0.00017521,2]
[346452425,1734981081069,-2513.63,0.00017521,2]
[346452426,1734981081078,-2814.19,0.00017521,2]
[346452427,1734981081087,-4251.26,0.00017521,2]
[346452428,1734981081096,-2070.98,0.00017521,2]
[346452429,1734981081105,-656.0,0.00017521,2]
[346452430,1734981081114,-1668.53,0.00017521,2]
[346452431,1734981081123,-14390.95,0.00017521,2]
[346452432,1734981081132,-743.25,0.00017521,2]
[346452433,1734981081141,-500.0,0.00017521,2]
[346452434,1734981081150,-1835.96,0.00017521,2]
[346452435,1734981081159,-1808.74,0.00017521,2]
[346452436,1734981081168,-500.0,0.00017521,2]
[346452437,1734981081178,-500.0,0.00017521,2]
[346452438,1734981081187,-500.0,0.00017521,2]
[346452439,1734981081197,-500.0,0.00017522,2]
[346452440,1734981081207,-500.0,0.00017522,2]
[346452441,1734981081217,-500.0,0.00017522,2]
[346452442,1734981081226,-500.0,0.00017522,2]
[346452443,1734981081235,-500.0,0.00017522,2]
[346452444,1734981081245,-847.11,0.00017522,2]
[346452445,1734981081254,-500.0,0.00017522,2]
[346452446,1734981081263,-828.8,0.00017522,2]
[346452447,1734981081272,-611.72,0.00017522,2]
[346452448,1734981081281,-502.81444908,0.00017522,2]
[346452449,1734981081291,-500.83684614,0.00017522,2]
[346452450,1734981081300,-1366.96,0.00017522,2]
[346452451,1734981081309,-500.0,0.00017522,2]
[346452452,1734981081318,-654.85,0.00017522,2]
[346452453,1734981081328,-500.0,0.00017522,2]
[346452454,1734981081337,-929.38,0.00017522,2]
[346452455,1734981081346,-500.0,0.00017522,2]
[346452456,1734981081355,-500.0,0.00017522,2]
[346452457,1734981081364,-500.0,0.00017522,2]
[346452458,1734981081373,-612.97,0.00017522,2]
[346452459,1734981081382,-500.0,0.00017522,2]
[346452460,1734981081391,-500.0,0.00017522,2]
[346452461,1734981081400,-500.0,0.00017522,2]
[346452462,1734981081409,-928.81,0.00017522,2]
[346452463,1734981081419,-500.0,0.00017522,2]
[346452464,1734981081428,-500.0,0.00017522,2]
[346452465,1734981081437,-500.0,0.00017522,2]
[346452466,1734981081446,-500.0,0.00017522,2]
[346452467,1734981081455,-500.0,0.00017522,2]
[346452468,1734981081466,-1616.48,0.00017522,2]
[346452469,1734981081475,-500.0,0.00017522,2]
[346452470,1734981081484,-811.86,0.00017522,2]
[346452471,1734981081493,-1337.18,0.00017522,2]
[346452472,1734981081505,-500.0,0.00017522,2]
[346452473,1734981081514,-501.54,0.00017522,2]
[346452474,1734981081523,-1562.0,0.00017522,2]
[346452475,1734981081533,-728.26,0.00017522,2]
[346452476,1734981081543,-665.03,0.00017522,2]
[346452477,1734981081552,-1009.12,0.00017522,2]
[346452478,1734981081562,-500.0,0.00017522,2]
[346452479,1734981081572,-500.0,0.00017522,2]
[346452480,1734981081581,-834.01,0.00017522,2]
[346452481,1734981081590,-1653.16,0.00017522,2]
[346452482,1734981081599,-828.94,0.00017522,2]
[346452483,1734981081608,-500.0,0.00017522,2]
[346452484,1734981081617,-500.0,0.00017522,2]
[346452485,1734981081626,-525.79,0.00017522,2]
[346452486,1734981081635,-500.0,0.00017522,2]
[346452487,1734981081644,-688.02,0.00017522,2]
[346452488,1734981081653,-500.0,0.00017522,2]
[346452489,1734981081662,-500.0,0.00017522,2]
[346452490,1734981081671,-500.0,0.00017522,2]
[346452491,1734981081680,-806.44,0.00017522,2]
[346452492,1734981081689,-835.73,0.00017522,2]
[346452493,1734981081699,-500.0,0.00017522,2]
[346452494,1734981081709,-582.63,0.00017522,2]
[346452495,1734981081718,-664.4,0.00017522,2]
[346452496,1734981081728,-500.0,0.00017522,2]
[346452497,1734981081739,-500.0,0.00017522,2]
[346452498,1734981081749,-500.0,0.00017522,2]
[346452499,1734981081760,-749.43,0.00017522,2]
[346452500,1734981081770,-500.0,0.00017522,2]
[346452501,1734981081781,-500.0,0.00017522,2]
[346452502,1734981081790,-500.0,0.00017522,2]
[346452503,1734981081800,-500.0,0.00017522,2]
[346452504,1734981081811,-1608.43,0.00017522,2]
[346452505,1734981081821,-500.0,0.00017522,2]
[346452506,1734981081829,-500.0,0.00017522,2]
[346452507,1734981081839,-500.0,0.00017522,2]
[346452508,1734981081848,-500.0,0.00017522,2]